Cogmind - Beta 11.1 @@@ ROGUE MODE // 2022.04.27 @ 15:30:27 Player: RNGesus Result: Self-destructed Performance ------------- Evolutions (1) 500 Regions Visited (3) 600 Robots Destroyed (42) 210 Value Destroyed (1064) 1064 Prototype IDs (2) 40 Alien Tech Used (0) 0 Bonus (11) 11 TOTAL SCORE: 2425 Bonus ------- High Alert Combat Kills 11 Cogmind --------- Core Integrity 108/400 Matter 264/300 Energy 265/265 System Corruption 0% Temperature Cool (0) Movement Treading (240) Ox1 Location -9/Materials Parts ------- > --- POWER (1) -------- Improved Ion Engine > --- PROPULSION (3) --- Light Treads Wheel > --- UTILITY (3) ------ Cooling System Large Storage Unit > --- WEAPON (2) ------- Heavy Assault Rifle Improved Assault Rifle > --- INVENTORY (15) --- Light Nuclear Core Light Nuclear Core Huge Storage Unit Experimental Sensor Array Seismic Detector Decoy Drone Bay (16/16) Heavy Assault Rifle Heavy Assault Rifle Improved Assault Rifle Rocket Launcher Mini Grenade Launcher Improved Grenade Launcher Peak State ------------ > --- POWER ------------ Ion Engine > --- PROPULSION ------- Light Treads Light Treads > --- UTILITY ---------- Large Storage Unit Decoy Drone Bay > --- WEAPON ----------- Heavy Assault Rifle Heavy Assault Rifle > --- INVENTORY -------- Ion Engine Light Nuclear Core Light Nuclear Core Compact Wheel Huge Storage Unit Experimental Sensor Array Seismic Detector Heavy Assault Rifle Heavy Assault Rifle Rocket Launcher Mini Grenade Launcher Mini Grenade Launcher Mini Grenade Launcher [Rating: 25] Favorites ----------- Power Ion Engine Engine Ion Engine Propulsion Light Treads Treads Light Treads Wheel Wheel Utility Large Storage Unit Device Cooling System Storage Large Storage Unit Protection Light Armor Plating Weapon Heavy Assault Rifle Energy Gun Medium Laser Ballistic Gun Heavy Assault Rifle Launcher Mini Grenade Launcher Build | -11 -10 -10 -9 ------- Run | Scr Mat Min Mat Slots Evolved 2 | . . . 2 Power . | . . . . Propulsion 1 | . . . 1 Utility 1 | . . . 1 Weapon . | . . . . Parts Attached 25 | 7 3 1 14 Power 2 | 1 . . 1 Engine 2 | 1 . . 1 Core . | . . . . Reactor . | . . . . Propulsion 7 | 3 . . 4 Treads 4 | 2 . . 2 Leg . | . . . . Wheel 3 | 1 . . 2 Hover . | . . . . Flight . | . . . . Utility 5 | 1 1 1 2 Device 2 | . . . 2 Storage 2 | 1 1 . . Processor . | . . . . Hackware . | . . . . Protection 1 | . . 1 . Artifact . | . . . . Weapon 11 | 2 2 . 7 Energy Gun 1 | 1 . . . Energy Cannon . | . . . . Ballistic Gun 9 | 1 2 . 6 Ballistic Cannon . | . . . . Launcher 1 | . . . 1 Special Weapon . | . . . . Impact Weapon . | . . . . Slashing Weapon . | . . . . Piercing Weapon . | . . . . Special Melee Weapon . | . . . . Unidentified Prototypes 2 | . . . 2 Parts Lost 7 | . . 1 6 Power 1 | . . . 1 Propulsion 3 | . . . 3 Utility 1 | . . 1 . Weapon 2 | . . . 2 Highest Loss Streak 6 | . . 1 6 To Critical Strikes . | . . . . Average Slot Usage (%) 81 | . 85 86 66 Engine 12 | . 14 14 6 Treads 25 | . 28 28 16 Wheel 1 | . . . 6 Storage 13 | . 14 14 11 Energy Gun 2 | . 6 . . Ballistic Gun 24 | . 21 28 21 Naked Turns . | . . . . Heaviest Build 35 | 13 31 34 35 Greatest Support 40 | 40 40 40 40 Greatest Overweight (x) 8 | 1 . . 8 Average Overweight (x) . | . . . 1 Largest Inventory Capacity 15 | 8 15 15 15 Average Capacity 14 | 7 14 15 15 Most Carried 15 | 3 10 15 15 Average Carried 10 | 1 6 11 13 Final Capacity 15 | 8 15 15 15 Final Carried 15 | 3 10 15 13 Class Distribution -------------------- 89% | Mutant 10% | Scavenger-Mutant Dominant Class ---------------- Mutant | -10/Materials Mutant | -10/Mines Scavenger-Mutant | -9/Materials Resources | -11 -10 -10 -9 ----------- Run | Scr Mat Min Mat Matter Collected 894 | 188 196 131 379 Remotely . | . . . . Salvage Created 1435 | . 414 255 766 Parts 82 | . 27 12 43 Haulers Intercepted 2 | . 1 . 1 Recyclers Shooed 1 | . 1 . . Parts Field Recycled . | . . . . Retrieved Matter . | . . . . Parts Self-Destructed . | . . . . Prevented . | . . . . Kills | -11 -10 -10 -9 ------- Run | Scr Mat Min Mat Combat Hostiles Destroyed 36 | . 12 8 16 Guns 33 | . 12 8 13 AOE 3 | . . . 3 Classes Destroyed 7 | . 4 1 2 Worker 2 | . . . 2 Hauler 2 | . 1 . 1 Recycler 2 | . 1 . 1 Swarmer 13 | . 6 3 4 Grunt 19 | . 6 4 9 Sentry 3 | . . . 3 Demolisher 1 | . . 1 . Best Kill Streak 8 | . 4 3 8 Combat Bots Only 8 | . 4 3 8 Max Kills in Single Turn 2 | . 2 2 2 Gunslinging 1 | . 1 1 . Exploded 2 | . . . 2 Melee . | . . . . Uniques/NPCs Destroyed . | . . . . Combat | -11 -10 -10 -9 -------- Run | Scr Mat Min Mat Damage Taken 1568 | . 228 405 935 Core 379 | . 9 78 292 Absorbed by Shields . | . . . . Core Remaining (%) 82 | 100 . 65 . Volleys Fired 106 | . 36 19 51 Largest 2 | . 2 2 2 Hottest 70 | . 70 46 46 Shots Fired 207 | . 72 38 97 Gun 205 | . 72 38 95 Cannon . | . . . . Launcher 2 | . . . 2 Special . | . . . . Kinetic 181 | . 48 38 95 Thermal 24 | . 24 . . Explosive 2 | . . . 2 Electromagnetic . | . . . . Robot Hit Streak 13 | . 10 6 13 Robot Miss Streak 4 | . 3 2 4 Penetration Max . | . . . . Secondary Targets 3 | . 2 1 . Max Gunslinging Chain 1 | . 1 1 . Shots Hit Robots 137 | . 48 23 66 Core Hits 62 | . 22 12 28 Critical Kills 1 | . . 1 . Critical Parts Destroyed 1 | . . . 1 Critical Strikes 4 | . 2 1 1 Burn 2 | . 2 . . Destroy 2 | . . 1 1 Melee Attacks . | . . . . Impact . | . . . . Slashing . | . . . . Piercing . | . . . . Sneak Attacks . | . . . . Combat Hostiles . | . . . . Follow-up Attacks . | . . . . Damage Inflicted 2162 | . 598 372 1192 Guns 1975 | . 598 372 1005 Cannons . | . . . . Explosions 187 | . . . 187 Melee . | . . . . Ramming . | . . . . Kinetic 1705 | . 328 372 1005 Thermal 270 | . 270 . . Explosive 187 | . . . 187 Electromagnetic . | . . . . Impact . | . . . . Slashing . | . . . . Piercing . | . . . . Highest Corruption . | . . . . Average Corruption . | . . . . Corruption Purged . | . . . . Corruption Blocked . | . . . . Overload Shots . | . . . . Overflow Damage . | . . . . Projectiles . | . . . . Explosions . | . . . . Melee . | . . . . Knockbacks . | . . . . Impact . | . . . . Kinetic . | . . . . Secondary . | . . . . Self-Inflicted Damage 132 | . . . 132 Shots 4 | . . . 4 Rammed . | . . . . Targets Rammed . | . . . . Kicked . | . . . . Crushed . | . . . . Highest Temperature 90 | . 90 22 1 Average Temperature 27 | . 32 7 1 Received Heat Transfer 423 | . 108 117 198 Siege Activations . | . . . . Robots Corrupted . | . . . . Combat Hostiles . | . . . . Parts Fried . | . . . . Impact Corruptions . | . . . . Robots Melted . | . . . . Combat Hostiles . | . . . . Parts Melted 3 | . 3 . . Heat Transferred 925 | . 925 . . Parts Sabotaged . | . . . . Parts Stolen . | . . . . Parts Stripped . | . . . . Power Chain Reactions 1 | . . . 1 Missiles Intercepted . | . . . . Alert | -11 -10 -10 -9 ------- Run | Scr Mat Min Mat Peak Influence 458 | . 268 145 458 Initial 45 | . . 45 . Average 141 | . 142 77 293 Maximum Alert Level 2 | . 1 . 2 Low Security (%) 74 | 100 68 100 25 Level 1 18 | . 31 . 37 Level 2 7 | . . . 36 Level 3 . | . . . . Level 4 . | . . . . Level 5 . | . . . . High Security . | . . . . Max Security . | . . . . Squads Dispatched 4 | . 3 . 1 Investigation 2 | . 2 . . Extermination . | . . . . Reinforcement 2 | . 1 . 1 Assault . | . . . . Garrison . | . . . . Intercept . | . . . . Searches Triggered . | . . . . Construction Impeded . | . . . . Haulers Reinforced . | . . . . Active Scanning Responses . | . . . . Cargo Convoy Interrupts . | . . . . Stealth | -11 -10 -10 -9 --------- Run | Scr Mat Min Mat Distress Signals 1 | . 1 . . Communications Jammed . | . . . . Distress Signals . | . . . . Times Spotted 55 | . 24 9 22 Peak Tracking Total 8 | . 4 3 8 Tactical Retreats 1 | . . . 1 Traps | -11 -10 -10 -9 ------- Run | Scr Mat Min Mat Traps Triggered 1 | . 1 . . Indirectly . | . . . . Trap Hack Attempts . | . . . . Triggered . | . . . . Disarmed . | . . . . Reprogrammed . | . . . . Reused . | . . . . Traps Extracted . | . . . . Installed . | . . . . Triggered . | . . . . Machines | -11 -10 -10 -9 ---------- Run | Scr Mat Min Mat Machines Disabled 3 | . . 1 2 Max in Single Turn 2 | . . 1 2 Machines Sabotaged . | . . . . Garrisons Compromised . | . . . . Overloaded Fab Kills . | . . . . Hacking | -11 -10 -10 -9 --------- Run | Scr Mat Min Mat Machines Accessed 6 | . 4 1 1 Terminals 4 | . 3 . 1 Fabricators . | . . . . Repair Stations . | . . . . Recycling Units 1 | . 1 . . Scanalyzers . | . . . . Garrison Access . | . . . . Total Hacks 14 | . 10 1 3 Successful 5 | . 4 1 . Failed 9 | . 6 . 3 Catastrophic 1 | . . . 1 Database Lockouts . | . . . . Manual 10 | . 10 . . Terminals 12 | . 9 . 3 Fabricators . | . . . . Repair Stations . | . . . . Recycling Units 1 | . 1 . . Scanalyzers . | . . . . Garrison Access . | . . . . Terminal Hacks 4 | . 3 1 . Robot Analysis 3 | . 3 . . Open Door 1 | . . 1 . Fabricator Hacks . | . . . . Repair Station Hacks . | . . . . Recycling Unit Hacks . | . . . . Scanalyzer . | . . . . Garrison Access Hacks . | . . . . Unauthorized Hacks 1 | . 1 . . Terminals . | . . . . Fabricators . | . . . . Repair Stations . | . . . . Recycling Units 1 | . 1 . . Tunnel 1 | . 1 . . Scanalyzers . | . . . . Garrison Access . | . . . . Data Cores Recovered . | . . . . Used . | . . . . Hacking Detections 4 | . 3 . 1 Full Trace Events 1 | . . . 1 Feedback Events . | . . . . Feedback Blocked . | . . . . Robot Schematics Acquired . | . . . . Robots Built . | . . . . Authchips . | . . . . Time . | . . . . Total Robot Build Rating . | . . . . Part Schematics Acquired . | . . . . Parts Built . | . . . . Authchips . | . . . . Time . | . . . . Total Part Build Rating . | . . . . Parts Repaired . | . . . . Time . | . . . . Parts Recycled . | . . . . Recycled Matter . | . . . . Retrieved Matter . | . . . . Retrieved Components . | . . . . Parts Scanalyzed . | . . . . Part Schematics Acquired . | . . . . Parts Damaged . | . . . . Bothacking | -11 -10 -10 -9 ------------ Run | Scr Mat Min Mat Used RIF Installer . | . . . . Robots Hacked . | . . . . Non-combat . | . . . . Combat . | . . . . Robot Hacks Applied . | . . . . Relay Couplers Released . | . . . . Fabnet Peak Effective % . | . . . . Robots Rewired . | . . . . Allies Hacked . | . . . . Hacks Repelled . | . . . . Allies | -11 -10 -10 -9 -------- Run | Scr Mat Min Mat Total Allies . | . . . . Largest Group . | . . . . Highest-Rated Group . | . . . . Highest-Rated Ally . | . . . . Total Orders 2 | . . . 2 RETURN 2 | . . . 2 Ally Attacks . | . . . . Total Damage . | . . . . Kills . | . . . . Allies Corrupted . | . . . . Allies Melted . | . . . . Intel | -11 -10 -10 -9 ------- Run | Scr Mat Min Mat Robot Analysis Total 3 | . 3 . . Derelict Logs Recovered 3 | . . 3 . Drone Launches 2 | . . . 2 Drone Recoveries 2 | . . . 2 Exploration | -11 -10 -10 -9 ------------- Run | Scr Mat Min Mat Turns Passed 2479 | 76 825 1062 516 Spaces Moved 1256 | 45 434 620 157 Core 5 | 4 . . 1 Treads 1202 | 32 434 620 116 Legs . | . . . . Wheels 49 | 9 . . 40 Hover . | . . . . Flight . | . . . . Fastest Speed 50 | 50 160 160 110 Average Speed 163 | 141 160 160 192 Slowest Speed 450 | 160 160 160 450 Overloaded Moves . | . . . . Propulsion Burnouts . | . . . . Robots Hopped . | . . . . Cave-ins Triggered . | . . . . Exploration Rate (%) 48 | 4 71 98 20 Regions Visited 3 Branch Regions 1 Pre-discovered Areas 2 | . 1 1 . Known Exits Taken . | . . . . Unknown Exits Taken 3 | 1 1 1 . Scrap Searched 1 | . . 1 . Spaces Dug . | . . . . Terrain Destroyed 31 | . . . 31 Melee . | . . . . Projectile . | . . . . AOE 31 | . . . 31 Terrain Rammed . | . . . . Walls Destroyed . | . . . . Machines Disabled . | . . . . Actions | -11 -10 -10 -9 --------- Run | Scr Mat Min Mat Total 1480 | 54 500 652 274 Wait 61 | . 13 8 40 Move 1253 | 44 433 619 157 Hop . | . . . . Pick Up 20 | 2 9 5 4 Fast Attach 14 | 7 1 . 6 Attach 6 | . 1 1 4 Detach 5 | 1 2 . 2 Swap 5 | . 1 . 4 Drop 10 | . 4 . 6 Fire 106 | . 36 19 51 Melee . | . . . . Ram . | . . . . Kick . | . . . . Crush . | . . . . Escape Stasis . | . . . . Rewire . | . . . . Trap . | . . . . Miscellaneous . | . . . . Route ------- -11/Scrapyard -10/Materials (discovered 3 exits: *Mat x2 / *Min) -10/Mines (discovered 2 exits: *Mat x2) -9/Materials (discovered 1 exit: *Mat) History --------- Turn | Location | Event 16 | -11/Scrapyard | Discovered new exit (range 16) 77 | -11/Scrapyard | Entered Materials 309 | -10/Materials | Build established: Mutant 615 | -10/Materials | Discovered new exit (range 8) 755 | -10/Materials | Discovered new exit (range 11) 810 | -10/Materials | Discovered new exit (range 3) 902 | -10/Materials | Entered Mines 922 | -10/Mines | Discovered new exit (range 9) 929 | -10/Mines | Assembled infested the area 934 | -10/Mines | Assisted by a Guerilla fighting off Assembled 981 | -10/Mines | Learned Materials terminal intel 1298 | -10/Mines | Learned location of 1 exit from Materials 1508 | -10/Mines | Found a damaged Exp. Sensor Array with a note attached 1511 | -10/Mines | Found Prototype Device 1650 | -10/Mines | Discovered new exit (range 9) 1676 | -10/Mines | Received a Rocket Launcher from a helpful Derelict 1770 | -10/Mines | Found the Drone Emporium 1777 | -10/Mines | Found Prototype Device 1842 | -10/Mines | Learned location of Storage (-8) 1964 | -10/Mines | Entered Materials 1964 | -9/Materials | Evolved 2 slots: Propulsion x1, Utility x1 1964 | -9/Materials | Identified Decoy Drone Bay 1965 | -9/Materials | Identified exit to Materials 1966 | -9/Materials | Loaded intel: 12 terminal locations 2106 | -9/Materials | Core integrity fell below 50% 2124 | -9/Materials | Lost 6 parts (1p3n2w) 2134 | -9/Materials | Destroyed 8 combat bots 2480 | -9/Materials | Self-destructed Last Messages --------------- 02280_ Acquired Hvy. Assault Rifle. 02284_ Acquired 38 matter. 02289_ Acquired Imp. Ion Engine. 02300_ Acquired Cooling System. 02304_ Connecting with Terminal... 02304_ Current location identified: Materials 02313_ Acquired 20 matter. 02365_ G-34 Mercenary destroyed. 02368_ Acquired 12 matter. 02371_ Acquired 6 matter. 02376_ G-34 Mercenary suffers critical hit (Destroy). 02376_ Destroyed Ion Engine. 02377_ Acquired 6 matter. 02379_ G-34 Mercenary destroyed. 02388_ K-01 Serf collects debris. 02392_ K-01 Serf destroyed. 02395_ Acquired 12 matter. 02469_ ALERT: Hostiles spotted, dispatching reinforcements to Terminal M007. 02477_ Lgt. Treads severed. Map ----- +----------------------------------------------------+ | | | | | | | | | | | | | | | | | | | ?????????????????????????????????????????????????? | | ?????????????????????????????????????????????????? | | ?????????????????????????????????????????????????? | | ?????????????????????????????????????????????????? | | ?????????????????????????????????????????????????? | | ?????????????????????????????????????????????????? | | ?????????????????"""??# """"""" #????????????????? | | ?????????????????"T"??# """"""" #????????????????? | | ??????????????????????# """"""" #????????????????? | | ??????????????????????# """"""" #####????????????? | | ?????T????????????????# """"""" # #????????????? | | ??????????????????????# # < #????????????? | | ??????????????????????# # #????????????? | | ??????????????????????#####+##### ########?????? | | ?????????????????????????# g g ####### | | ?????????????????### ##### !===% | | ?????????? + g l@ ####### | | ?????????????????###g#############+#########???### | | ??????????""???????????????????? ????# ! | | ??????????T"?????????????????? #??# | | ??????????""????????????????#! #??? """ """ | | ????????????????????????????# #??????? """ | | ????????????????????????????# """ """ #????????""" | | ????????????????????????????# """ """ #????????? | | ????????????????????????????# """ """ #??????????? | | ????????????????????????????# #??????????? | | ???????????????????????????????#####?##??????????? | | ?????????????????????????????????????????????????? | | ?????????????????????????????????????????????????? | | ?????????????????????????????????????????????????? | | ?????????????????????????????????????????????????? | | ?????????????????????????????????????????????????? | | ?????????????????????????????????????????????????? | | ?????????????????????????????????????????????????? | | ?????????????????????????????????????????????????? | | ??????????????????????????????????????????????? "" | | ??????????????????????????????????????????????? "" | | ??????????????????????????????????????T???????? "" | | ??????????????????????????????????????????????? "" | | ?????????????????????????????????????????????# | | ?????????????????????????????????????????????# | +----------------------------------------------------+ Best States ------------- Heat Dissipation 50 Energy Generation 12 Energy Capacity 265 Matter Stores 300 Matter Capacity 300 Sight Range 16 Terrain Scan Density 10 Armor Coverage 150 Evasion (%) 40 Recoil Reduction 2 Item Schematics ----------------- None Robot Schematics ------------------ None Fabricated ------------ Nothing Alien Tech Used ----------------- None Achievements -------------- None Challenges ------------ None Game ------ Seed FrostLightpackNeutralizer Manual? 0 Play Time 00:15:02 Cumulative 363.8 hours Start 2022.04.27 @ 14:56:32 End 2022.04.27 @ 15:30:27 Sessions 1 Manual Loads 0 Difficulty Rogue Special Mode None Game No. 518 Rogue 518 Adventurer 0 Explorer 0 Win Type - Total 6 Types 4/0/1/1/0/0/0/0/0 Lore% 83 Gallery% 85 Achievement% 66 Wizard Run 0 Options --------- ASCII 0 Keyboard 1 Movement Numpad Keybinds 0 Fullscreen 2 Font 24/Smallcaps Map View 76x50 Tactical HUD 1 Map Filters NONE Filters NONE Steam 1 RUN: 4dca60b8-b08d-44a7-ba39-fb0ae91dab72